fUST/lending_fUST_20240921
["ID","MTS","AMOUNT","RATE_DAILY","PERIOD"]
[338739272,1726905041497,-500.0,0.00014558,2]
[338739274,1726905041506,-607.69056196,0.00014558,2]
[338739276,1726905041516,-500.0,0.00014558,2]
[338739278,1726905041525,-500.0,0.00014558,2]
[338739280,1726905041535,-500.0,0.00014558,2]
[338739282,1726905041545,-500.0,0.00014558,2]
[338739284,1726905041554,-503.62,0.00014558,2]
[338739286,1726905041563,-500.0,0.00014558,2]
[338739288,1726905041573,-500.0,0.00014558,2]
[338739289,1726905041582,-500.0,0.00014558,2]
[338739291,1726905041591,-500.0,0.00014558,2]
[338739293,1726905041600,-500.0,0.00014558,2]
[338739295,1726905041610,-500.0,0.00014558,2]
[338739297,1726905041620,-500.0,0.00014558,2]
[338739299,1726905041629,-500.0,0.00014558,2]
[338739301,1726905041639,-500.0,0.00014558,2]
[338739303,1726905041649,-641.51947122,0.00014558,2]
[338739305,1726905041659,-500.0,0.00014558,2]
[338739307,1726905041669,-500.0,0.00014558,2]
[338739309,1726905041679,-500.0,0.00014558,2]
[338739311,1726905041688,-500.0,0.00014558,2]
[338739313,1726905041697,-500.0,0.00014558,2]
[338739315,1726905041707,-500.0,0.00014558,2]
[338739317,1726905041716,-500.0,0.00014558,2]
[338739319,1726905041726,-500.0,0.00014558,2]
[338739321,1726905041735,-500.0,0.00014558,2]
[338739323,1726905041745,-500.0,0.00014558,2]
[338739325,1726905041755,-500.0,0.00014558,2]
[338739327,1726905041764,-500.0,0.00014558,2]
[338739329,1726905041773,-500.0,0.00014558,2]
[338739331,1726905041783,-500.0,0.00014558,2]
[338739333,1726905041792,-151.0,0.00014558,2]
[338739335,1726905041801,-151.0,0.00014558,2]
[338739337,1726905041810,-855.86,0.00014558,2]
[338739339,1726905041819,-500.0,0.00014558,2]
[338739341,1726905041828,-500.0,0.00014558,2]
[338739343,1726905041838,-500.0,0.00014558,2]
[338739344,1726905041847,-500.0,0.00014558,2]
[338739346,1726905041857,-500.0,0.00014558,2]
[338739348,1726905041867,-873.0,0.00014558,2]
[338739350,1726905041876,-527.74,0.00014558,2]
[338739352,1726905041886,-500.0,0.00014558,2]
[338739354,1726905041896,-500.0,0.00014558,2]
[338739356,1726905041906,-500.0,0.00014558,2]
[338739358,1726905041916,-1700.158132,0.00014558,2]
[338739360,1726905041926,-1700.158132,0.00014558,2]
[338739362,1726905041937,-175.060448,0.00014558,2]
[338739364,1726905041948,-175.060448,0.00014558,2]
[338739366,1726905041958,-163.476886,0.00014558,2]
[338739368,1726905041968,-503.680292,0.00014558,2]
[338739370,1726905041978,-503.680292,0.00014558,2]
[338739372,1726905041988,-163.476886,0.00014558,2]
[338739374,1726905041999,-500.0,0.00014558,2]
[338739376,1726905042009,-192.671463,0.00014558,2]
[338739378,1726905042018,-16706.89,0.00014558,2]
[338739380,1726905042028,-500.0,0.00014558,2]
[338739382,1726905042038,-2394.64,0.00014558,2]
[338739384,1726905042047,-993.44,0.00014559,2]
[338739386,1726905042058,-912.71,0.00014559,2]
[338739388,1726905042068,-514.8613394,0.00014559,2]
[338739390,1726905042077,-500.0,0.00014559,2]
[338739393,1726905042090,-500.0,0.00014559,2]
[338739395,1726905042101,-500.0,0.00014559,2]
[338739397,1726905042111,-517.93,0.00014559,2]
[338739399,1726905042122,-500.0,0.00014559,2]
[338739401,1726905042134,-500.0,0.00014559,2]
[338739403,1726905042144,-500.0,0.00014559,2]
[338739405,1726905042154,-500.0,0.00014559,2]
[338739407,1726905042164,-500.0,0.00014559,2]
[338739409,1726905042179,-500.0,0.00014559,2]
[338739411,1726905042198,-500.0,0.00014559,2]
[338739413,1726905042217,-500.0,0.00014559,2]
[338739415,1726905042236,-500.0,0.00014559,2]
[338739417,1726905042246,-500.0,0.00014559,2]
[338739419,1726905042257,-1923.46,0.00014559,2]
[338739421,1726905042267,-500.0,0.00014559,2]
[338739424,1726905042279,-500.0,0.00014559,2]
[338739426,1726905042289,-500.0,0.00014559,2]
[338739428,1726905042299,-500.0,0.00014559,2]
[338739430,1726905042308,-500.0,0.00014559,2]
[338739432,1726905042318,-727.21,0.00014559,2]
[338739434,1726905042328,-500.0,0.00014559,2]
[338739436,1726905042338,-587.76834162,0.00014559,2]
[338739438,1726905042348,-500.0,0.00014561,2]
[338739440,1726905042358,-500.0,0.00014561,2]
[338739442,1726905042369,-500.0,0.00014561,2]
[338739444,1726905042379,-500.0,0.00014561,2]
[338739446,1726905042389,-624.31,0.00014561,2]
[338739448,1726905042400,-500.0,0.00014561,2]
[338739450,1726905042409,-500.0,0.00014561,2]
[338739452,1726905042419,-500.0,0.00014561,2]
[338739455,1726905042432,-500.0,0.00014561,2]
[338739457,1726905042442,-500.0,0.00014561,2]
[338739459,1726905042453,-993.8,0.00014561,2]
[338739461,1726905042463,-500.0,0.00014561,2]
[338739463,1726905042472,-200.0,0.00014561,2]
[338739465,1726905042482,-500.0,0.00014561,2]
[338739467,1726905042491,-500.0,0.00014561,2]
[338739469,1726905042500,-500.0,0.00014561,2]
[338739471,1726905042510,-528.21,0.00014561,2]
[338739474,1726905042520,-500.0,0.00014561,2]
[338739476,1726905042531,-500.0,0.00014561,2]
[338739478,1726905042540,-561.56,0.00014561,2]
[338739480,1726905042551,-523.64,0.00014561,2]
[338739482,1726905042561,-515.13,0.00014561,2]
[338739484,1726905042571,-500.0,0.00014561,2]
[338739486,1726905042581,-500.0,0.00014561,2]
[338739488,1726905042591,-500.0,0.00014561,2]
[338739490,1726905042600,-727.78,0.00014561,2]
[338739492,1726905042610,-500.0,0.00014561,2]
[338739494,1726905042619,-500.0,0.00014561,2]
[338739496,1726905042630,-195.02236801,0.00014561,2]
[338739498,1726905042640,-231.90449802,0.00014561,2]
[338739500,1726905042649,-500.0,0.00014561,2]
[338739502,1726905042659,-500.0,0.00014561,2]
[338739504,1726905042668,-500.0,0.00014561,2]
[338739506,1726905042677,-500.0,0.00014561,2]
[338739508,1726905042687,-473.00343408,0.00014561,2]
[338739510,1726905042696,-500.0,0.00014561,2]
[338739512,1726905042705,-500.0,0.00014561,2]
[338739514,1726905042715,-500.0,0.00014561,2]
[338739516,1726905042725,-500.0,0.00014561,2]
[338739518,1726905042734,-500.0,0.00014561,2]
[338739520,1726905042743,-285.95029188,0.00014561,2]
[338739522,1726905042752,-1527.8,0.00014561,2]
[338739524,1726905042762,-166.869492,0.00014561,2]
[338739526,1726905042771,-166.869492,0.00014561,2]
[338739528,1726905042781,-500.0,0.00014561,2]
[338739529,1726905042790,-379.02127384,0.00014561,2]
[338739532,1726905042800,-235.306736,0.00014561,2]
[338739533,1726905042809,-235.306736,0.00014561,2]
[338739535,1726905042821,-151.0,0.00014561,2]
[338739538,1726905042832,-151.0,0.00014561,2]
[338739540,1726905042841,-200.217822,0.00014561,2]
[338739542,1726905042851,-500.0,0.00014561,2]
[338739543,1726905042860,-178.348073,0.00014561,2]
[338739545,1726905042870,-178.348073,0.00014561,2]
[338739547,1726905042879,-726.919242,0.00014561,2]
[338739549,1726905042890,-726.919242,0.00014561,2]
[338739551,1726905042900,-151.0,0.00014561,2]
[338739553,1726905042910,-151.0,0.00014561,2]
[338739555,1726905042920,-151.0,0.00014561,2]
[338739557,1726905042931,-797.234245,0.00014561,2]
[338739559,1726905042942,-151.0,0.00014561,2]
[338739561,1726905042953,-797.234245,0.00014561,2]
[338739563,1726905042963,-151.0,0.00014561,2]
[338739565,1726905042973,-541.023795,0.00014561,2]
[338739567,1726905042982,-541.023795,0.00014561,2]
[338739569,1726905042991,-431.816928,0.00014562,2]
[338739571,1726905043001,-431.816928,0.00014562,2]
[338739573,1726905043010,-500.0,0.00014571,2]
[338739576,1726905043022,-431.816928,0.00014572,2]
[338739578,1726905043032,-431.816928,0.00014572,2]
[338739582,1726905043042,-153.0,0.000146,2]
[338739584,1726905043052,-620.05967728,0.00014611,2]
[338739586,1726905043061,-338.93378883,0.00014642,2]
[338739589,1726905043071,-1230.14,0.000147,2]
[338739592,1726905043080,-338.93378883,0.00014812,2]
[338739595,1726905043094,-5773.8220276,0.00014813,2]
[338739597,1726905043102,-431.816928,0.00014818,2]
[338739599,1726905043111,-431.816928,0.00014818,2]
[338739601,1726905043121,-2639.17259718,0.00014819,2]
[338739626,1726905043358,-3134.64943042,0.00014819,2]
[338739628,1726905043368,-151.0,0.00014819,2]
[338739630,1726905043378,-151.0,0.00014819,2]
[338739633,1726905043387,-1700.158132,0.00014819,2]
[338739635,1726905043397,-1700.158132,0.00014819,2]
[338739637,1726905043408,-175.060448,0.00014819,2]
[338739639,1726905043418,-175.060448,0.00014819,2]
[338739641,1726905043429,-163.476886,0.00014819,2]
[338739643,1726905043439,-503.680292,0.00014819,2]
[338739645,1726905043450,-503.680292,0.00014819,2]
[338739647,1726905043459,-163.476886,0.00014819,2]
[338739649,1726905043469,-5773.8220276,0.00014823,2]
[338739651,1726905043479,-166.869492,0.00014823,2]
[338739653,1726905043489,-166.869492,0.00014823,2]
[338739655,1726905043499,-235.306736,0.00014823,2]
[338739658,1726905043510,-235.306736,0.00014823,2]
[338739660,1726905043522,-151.0,0.00014823,2]
[338739662,1726905043531,-178.348073,0.00014823,2]
[338739664,1726905043542,-178.348073,0.00014823,2]
[338739666,1726905043551,-726.919242,0.00014823,2]
[338739668,1726905043561,-726.919242,0.00014823,2]
[338739670,1726905043571,-151.0,0.00014823,2]
[338739672,1726905043580,-152.282225,0.00014823,2]
[338739674,1726905043590,-151.0,0.00014823,2]
[338739676,1726905043600,-797.234245,0.00014823,2]
[338739678,1726905043609,-151.0,0.00014823,2]
[338739680,1726905043618,-797.234245,0.00014823,2]
[338739682,1726905043628,-151.0,0.00014823,2]
[338739684,1726905043637,-541.023795,0.00014823,2]
[338739686,1726905043648,-541.023795,0.00014823,2]
[338739688,1726905043659,-166.869492,0.00014829,2]
[338739690,1726905043668,-166.869492,0.00014829,2]
[338739692,1726905043678,-235.306736,0.00014829,2]
[338739694,1726905043691,-235.306736,0.00014829,2]
[338739697,1726905043702,-292.951956,0.00014829,2]
[338739699,1726905043712,-178.348073,0.00014829,2]
[338739701,1726905043722,-178.348073,0.00014829,2]
[338739703,1726905043733,-726.919242,0.00014829,2]
[338739705,1726905043743,-726.919242,0.00014829,2]
[338739707,1726905043754,-151.0,0.00014829,2]
[338739709,1726905043764,-151.0,0.00014829,2]
[338739711,1726905043775,-797.234245,0.00014829,2]
[338739713,1726905043785,-151.0,0.00014829,2]
[338739716,1726905043797,-797.234245,0.00014829,2]
[338739718,1726905043808,-151.0,0.00014829,2]
[338739720,1726905043819,-541.023795,0.00014829,2]
[338739722,1726905043829,-541.023795,0.00014829,2]
[338739724,1726905043840,-500.0,0.00014832,2]
[338739726,1726905043849,-629.78,0.00014832,2]
[338739729,1726905043861,-500.0,0.00014832,2]
[338739731,1726905043871,-500.0,0.00014832,2]
[338739733,1726905043882,-500.0,0.00014832,2]
[338739735,1726905043892,-500.0,0.00014832,2]
[338739737,1726905043903,-503.62,0.00014832,2]
[338739739,1726905043912,-500.0,0.00014832,2]
[338739741,1726905043922,-500.0,0.00014832,2]
[338739743,1726905043932,-500.0,0.00014832,2]
[338739745,1726905043943,-500.0,0.00014832,2]
[338739747,1726905043953,-500.0,0.00014832,2]
[338739750,1726905043964,-500.0,0.00014832,2]
[338739752,1726905043974,-500.0,0.00014832,2]
[338739754,1726905043983,-500.0,0.00014832,2]
[338739756,1726905043996,-500.0,0.00014832,2]
[338739758,1726905044007,-500.0,0.00014832,2]
[338739760,1726905044019,-500.0,0.00014832,2]
[338739763,1726905044030,-307.34497721,0.00014832,2]
[338739765,1726905044041,-500.0,0.00014832,2]
[338739767,1726905044052,-500.0,0.00014832,2]
[338739769,1726905044061,-500.0,0.00014832,2]
[338739771,1726905044071,-500.0,0.00014832,2]
[338739773,1726905044080,-500.0,0.00014832,2]
[338739775,1726905044094,-855.86,0.00014832,2]
[338739777,1726905044104,-500.0,0.00014832,2]
[338739779,1726905044116,-500.0,0.00014832,2]
[338739782,1726905044127,-500.0,0.00014832,2]
[338739783,1726905044136,-500.0,0.00014832,2]
[338739786,1726905044147,-500.0,0.00014832,2]
[338739788,1726905044157,-873.0,0.00014832,2]
[338739790,1726905044168,-527.74,0.00014832,2]
[338739791,1726905044177,-500.0,0.00014832,2]
[338739794,1726905044187,-500.0,0.00014832,2]
[338739795,1726905044197,-500.0,0.00014832,2]
[338739797,1726905044206,-500.0,0.00014832,2]
[338739799,1726905044215,-16706.89,0.00014832,2]
[338739801,1726905044225,-500.0,0.00014832,2]
[338739803,1726905044234,-2394.64,0.00014832,2]
[338739805,1726905044244,-993.44,0.00014833,2]
[338739807,1726905044253,-912.71,0.00014833,2]
[338739809,1726905044262,-500.0,0.00014833,2]
[338739811,1726905044272,-500.0,0.00014833,2]
[338739813,1726905044281,-517.93,0.00014833,2]
[338739816,1726905044291,-500.0,0.00014833,2]
[338739818,1726905044301,-500.0,0.00014833,2]
[338739820,1726905044313,-500.0,0.00014833,2]
[338739822,1726905044322,-500.0,0.00014833,2]
[338739824,1726905044333,-500.0,0.00014833,2]
[338739826,1726905044343,-500.0,0.00014833,2]
[338739828,1726905044353,-500.0,0.00014833,2]
[338739830,1726905044362,-500.0,0.00014833,2]
[338739832,1726905044372,-500.0,0.00014833,2]
[338739834,1726905044382,-500.0,0.00014833,2]
[338739836,1726905044392,-1923.46,0.00014833,2]
[338739839,1726905044403,-500.0,0.00014833,2]
[338739841,1726905044415,-500.0,0.00014833,2]
[338739843,1726905044426,-500.0,0.00014833,2]
[338739845,1726905044438,-500.0,0.00014833,2]
[338739848,1726905044449,-500.0,0.00014833,2]
[338739850,1726905044460,-727.21,0.00014833,2]
[338739852,1726905044469,-500.0,0.00014833,2]
[338739853,1726905044479,-500.0,0.00014835,2]
[338739855,1726905044489,-579.5715517,0.00014835,2]
[338739857,1726905044499,-500.0,0.00014835,2]
[338739859,1726905044509,-500.0,0.00014835,2]
[338739861,1726905044519,-624.31,0.00014835,2]
[338739864,1726905044531,-500.0,0.00014835,2]
[338739866,1726905044543,-205.40282421,0.00014835,2]
[338739868,1726905044554,-211.4398585,0.00014835,2]
[338739870,1726905044564,-166.72683643,0.00014835,2]
[338739872,1726905044574,-500.0,0.00014835,2]
[338739874,1726905044584,-993.8,0.00014835,2]
[338739876,1726905044595,-500.0,0.00014835,2]
[338739878,1726905044605,-200.0,0.00014835,2]
[338739880,1726905044616,-500.0,0.00014835,2]
[338739882,1726905044626,-500.0,0.00014835,2]
[338739884,1726905044637,-500.0,0.00014835,2]
[338739886,1726905044648,-528.21,0.00014835,2]
[338739888,1726905044659,-501.05199483,0.00014835,2]
[338739890,1726905044669,-447.81982127,0.00014835,2]
[338739892,1726905044679,-561.56,0.00014835,2]
[338739895,1726905044689,-523.64,0.00014835,2]
[338739897,1726905044700,-515.13,0.00014835,2]
[338739899,1726905044709,-500.0,0.00014835,2]
[338739901,1726905044719,-500.0,0.00014835,2]
[338739903,1726905044730,-500.0,0.00014835,2]
[338739905,1726905044740,-727.78,0.00014835,2]
[338739907,1726905044750,-500.0,0.00014835,2]
[338739909,1726905044760,-500.0,0.00014835,2]
[338739911,1726905044770,-500.0,0.00014835,2]
[338739913,1726905044781,-500.0,0.00014835,2]
[338739915,1726905044792,-500.0,0.00014835,2]
[338739917,1726905044804,-500.0,0.00014835,2]
[338739920,1726905044816,-500.0,0.00014835,2]
[338739922,1726905044826,-500.0,0.00014835,2]
[338739924,1726905044837,-500.0,0.00014835,2]
[338739926,1726905044847,-500.0,0.00014835,2]
[338739928,1726905044859,-500.0,0.00014835,2]
[338739930,1726905044869,-1527.8,0.00014835,2]
[338739932,1726905044879,-500.0,0.00014835,2]
[338739934,1726905044891,-500.0,0.00014835,2]
[338739936,1726905044903,-151.0,0.00014835,2]
[338739939,1726905044915,-151.0,0.00014835,2]
[338739941,1726905044926,-541.023795,0.00014835,2]
[338739943,1726905044937,-541.023795,0.00014835,2]
[338739945,1726905044947,-431.816928,0.00014839,2]
[338739947,1726905044957,-431.816928,0.00014839,2]
[338739949,1726905044967,-500.0,0.00014845,2]
[338739951,1726905044977,-1000.0,0.00014846,2]
[338739953,1726905044987,-150.0,0.00014859,2]
[338739955,1726905044997,-208.8377925,0.00014871,2]
[338739957,1726905045008,-213.1380096,0.00014871,2]
[338739959,1726905045018,-208.8377925,0.00014871,2]
[338739961,1726905045028,-208.8377925,0.00014871,2]
[338739963,1726905045038,-208.1433348,0.00014871,2]
[338739965,1726905045048,-431.816928,0.000149,2]
[338739967,1726905045058,-431.816928,0.000149,2]
[338739969,1726905045068,-208.8377925,0.000149,2]
[338739971,1726905045079,-1000.0,0.00014911,2]
[338739973,1726905045092,-503.680292,0.00014929,2]
[338739975,1726905045102,-503.680292,0.00014929,2]
[338739977,1726905045113,-5773.8220276,0.0001497,2]
[338739979,1726905045123,-151.0,0.0001497,2]
[338739981,1726905045132,-151.0,0.0001497,2]
[338739983,1726905045142,-1700.158132,0.0001497,2]
[338739985,1726905045153,-1700.158132,0.0001497,2]
[338739987,1726905045163,-175.060448,0.0001497,2]
[338739989,1726905045173,-175.060448,0.0001497,2]
[338739991,1726905045183,-163.476886,0.0001497,2]
[338739993,1726905045193,-163.476886,0.0001497,2]
[338739994,1726905045202,-544.1636485,0.00014979,2]
[338739995,1726905045212,-151.0,0.0001498,2]
[338739996,1726905045222,-272.631597,0.0001498,2]
[338739997,1726905045232,-272.631597,0.0001498,2]
[338739998,1726905045242,-151.0,0.0001498,2]
[338739999,1726905045252,-151.0,0.0001498,2]
[338740000,1726905045261,-151.0,0.0001498,2]
[338740001,1726905045271,-151.0,0.0001498,2]
[338740002,1726905045281,-184.151997,0.0001498,2]
[338740003,1726905045290,-184.151997,0.0001498,2]
[338740004,1726905045300,-6707.94644165,0.0001498,2]
[338740005,1726905045310,-338.93378883,0.00014983,2]
[338740006,1726905045320,-1000.0,0.00015,9]
[338740007,1726905045329,-150.112233,0.00015,2]
[338740008,1726905045339,-150.112233,0.00015,2]
[338740009,1726905045348,-1000.0,0.00015037,2]
[338740010,1726905045359,-1653.264945,0.00015068,2]
[338740011,1726905045368,-258.5288097,0.00015068,2]
[338740012,1726905045380,-5773.8220276,0.00015069,2]
[338740013,1726905045389,-500.0,0.00015073,2]
[338740014,1726905045399,-500.0,0.00015073,2]
[338740015,1726905045408,-500.45694714,0.00015073,2]
[338740016,1726905045418,-500.0,0.00015073,2]
[338740017,1726905045428,-370.61544553,0.00015073,2]
[338740018,1726905045438,-500.0,0.00015073,2]
[338740019,1726905045447,-500.36347851,0.00015073,2]
[338740020,1726905045457,-500.0,0.00015073,2]
[338740021,1726905045467,-383.04284307,0.00015073,2]
[338740022,1726905045478,-500.0,0.00015073,2]
[338740023,1726905045488,-500.0,0.00015073,2]
[338740024,1726905045499,-5773.8220276,0.00015073,2]
[338740025,1726905045509,-151.0,0.00015076,2]
[338740027,1726905045518,-1144.079738,0.00015076,2]
[338740029,1726905045528,-1144.079738,0.00015076,2]
[338740031,1726905045538,-1113.570194,0.00015076,2]
[338740033,1726905045548,-1113.570194,0.00015076,2]
[338740035,1726905045558,-931.712217,0.00015077,2]
[338740037,1726905045567,-931.712217,0.00015077,2]
[338740039,1726905045577,-151.0,0.00015077,2]
[338740041,1726905045587,-151.0,0.00015077,2]
[338740043,1726905045596,-1028.335934,0.00015077,2]
[338740045,1726905045606,-1028.335934,0.00015077,2]
[338740047,1726905045616,-151.0,0.00015077,2]
[338740049,1726905045625,-151.0,0.00015077,2]
[338740051,1726905045635,-151.0,0.00015077,2]
[338740053,1726905045645,-151.0,0.00015077,2]
[338740055,1726905045654,-166.869492,0.00015077,2]
[338740057,1726905045664,-166.869492,0.00015077,2]
[338740059,1726905045675,-235.306736,0.00015077,2]
[338740062,1726905045686,-235.306736,0.00015077,2]
[338740064,1726905045696,-178.348073,0.00015077,2]
[338740066,1726905045706,-178.348073,0.00015077,2]
[338740068,1726905045715,-726.919242,0.00015077,2]
[338740070,1726905045725,-726.919242,0.00015077,2]
[338740072,1726905045735,-797.234245,0.00015077,2]
[338740074,1726905045744,-151.0,0.00015077,2]
[338740076,1726905045757,-797.234245,0.00015077,2]
[338740078,1726905045766,-174.661316,0.00015077,2]
[338740080,1726905045777,-208.465755,0.00015077,2]
[338740083,1726905045786,-208.465755,0.00015077,2]
[338740085,1726905045796,-366.71633,0.00015077,2]
[338740087,1726905045805,-366.71633,0.00015077,2]
[338740089,1726905045815,-166.869492,0.00015079,2]
[338740091,1726905045825,-166.869492,0.00015079,2]
[338740094,1726905045835,-235.306736,0.00015079,2]
[338740097,1726905045845,-235.306736,0.00015079,2]
[338740099,1726905045856,-178.348073,0.00015079,2]
[338740101,1726905045867,-178.348073,0.00015079,2]
[338740103,1726905045877,-726.919242,0.00015079,2]
[338740105,1726905045887,-726.919242,0.00015079,2]
[338740107,1726905045897,-151.0,0.00015079,2]
[338740109,1726905045906,-151.0,0.00015079,2]
[338740111,1726905045916,-797.234245,0.00015079,2]
[338740113,1726905045926,-151.0,0.00015079,2]
[338740115,1726905045935,-797.234245,0.00015079,2]
[338740117,1726905045944,-541.023795,0.00015079,2]
[338740120,1726905045954,-541.023795,0.00015079,2]
[338740122,1726905045963,-5773.8220276,0.0001508,2]
[338740124,1726905045973,-193.018,0.00015083,2]
[338740126,1726905045983,-541.023795,0.00015083,2]
[338740128,1726905045992,-541.023795,0.00015083,2]
[338740130,1726905046002,-431.816928,0.0001509,2]
[338740132,1726905046012,-431.816928,0.0001509,2]
[338740134,1726905046022,-151.0,0.0001509,2]
[338740136,1726905046033,-151.0,0.0001509,2]
[338740138,1726905046042,-446.600494,0.0001509,2]
[338740140,1726905046053,-446.600494,0.0001509,2]
[338740142,1726905046064,-151.0,0.0001509,2]
[338740144,1726905046075,-151.0,0.0001509,2]
[338740146,1726905046085,-1740.428184,0.0001509,2]
[338740148,1726905046097,-1740.428184,0.0001509,2]
[338740151,1726905046109,-615.622757,0.0001509,2]
[338740153,1726905046119,-931.712217,0.0001509,2]
[338740155,1726905046130,-615.622757,0.0001509,2]
[338740157,1726905046139,-931.712217,0.0001509,2]
[338740159,1726905046150,-589.325293,0.0001509,2]
[338740161,1726905046160,-151.0,0.0001509,2]
[338740163,1726905046170,-151.0,0.0001509,2]
[338740165,1726905046181,-1028.335934,0.0001509,2]
[338740168,1726905046193,-1028.335934,0.0001509,2]
[338740170,1726905046206,-151.0,0.0001509,2]
[338740172,1726905046218,-151.0,0.0001509,2]
[338740174,1726905046228,-151.0,0.0001509,2]
[338740177,1726905046241,-151.0,0.0001509,2]
[338740179,1726905046252,-151.0,0.0001509,2]
[338740181,1726905046263,-151.0,0.0001509,2]
[338740183,1726905046273,-272.631597,0.0001509,2]
[338740185,1726905046283,-272.631597,0.0001509,2]
[338740187,1726905046292,-151.0,0.0001509,2]
[338740189,1726905046303,-1144.079738,0.0001509,2]
[338740191,1726905046312,-1144.079738,0.0001509,2]
[338740193,1726905046322,-151.0,0.0001509,2]
[338740195,1726905046331,-151.0,0.0001509,2]
[338740197,1726905046341,-151.0,0.0001509,2]
[338740199,1726905046351,-1113.570194,0.0001509,2]
[338740201,1726905046360,-1113.570194,0.0001509,2]
[338740203,1726905046369,-184.151997,0.0001509,2]
[338740205,1726905046379,-184.151997,0.0001509,2]
[338740227,1726905046389,-208.465755,0.0001509,2]
[338740229,1726905046586,-208.465755,0.0001509,2]
[338740231,1726905046595,-366.71633,0.0001509,2]
[338740233,1726905046605,-366.71633,0.0001509,2]
[338740235,1726905046615,-151.0,0.00015093,2]
[338740237,1726905046624,-446.600494,0.00015093,2]
[338740239,1726905046633,-446.600494,0.00015093,2]
[338740240,1726905046642,-151.0,0.00015093,2]
[338740242,1726905046655,-151.0,0.00015093,2]
[338740244,1726905046665,-1740.428184,0.00015093,2]
[338740246,1726905046675,-1740.428184,0.00015093,2]
[338740249,1726905046685,-615.622757,0.00015093,2]
[338740251,1726905046698,-931.712217,0.00015093,2]
[338740253,1726905046708,-615.622757,0.00015093,2]
[338740255,1726905046718,-931.712217,0.00015093,2]
[338740256,1726905046727,-589.325293,0.00015093,2]
[338740258,1726905046737,-151.0,0.00015093,2]
[338740260,1726905046746,-151.0,0.00015093,2]
[338740263,1726905046757,-1028.335934,0.00015093,2]
[338740264,1726905046766,-1028.335934,0.00015093,2]
[338740266,1726905046775,-151.0,0.00015093,2]
[338740268,1726905046784,-151.0,0.00015093,2]
[338740270,1726905046794,-151.0,0.00015093,2]
[338740272,1726905046803,-151.0,0.00015093,2]
[338740274,1726905046813,-151.0,0.00015093,2]
[338740277,1726905046824,-151.0,0.00015093,2]
[338740279,1726905046835,-272.631597,0.00015093,2]
[338740281,1726905046844,-272.631597,0.00015093,2]
[338740283,1726905046853,-151.0,0.00015093,2]
[338740285,1726905046863,-1144.079738,0.00015093,2]
[338740287,1726905046873,-1144.079738,0.00015093,2]
[338740289,1726905046882,-151.0,0.00015093,2]
[338740291,1726905046892,-151.0,0.00015093,2]
[338740293,1726905046902,-151.0,0.00015093,2]
[338740295,1726905046912,-166.869492,0.00015093,2]
[338740297,1726905046923,-166.869492,0.00015093,2]
[338740299,1726905046933,-1113.570194,0.00015093,2]
[338740301,1726905046943,-235.306736,0.00015093,2]
[338740304,1726905046954,-1113.570194,0.00015093,2]
[338740306,1726905046963,-235.306736,0.00015093,2]
[338740308,1726905046973,-184.151997,0.00015093,2]
[338740309,1726905046982,-184.151997,0.00015093,2]